lending/lending_fUSD_20240509
["ID","MTS","AMOUNT","RATE_DAILY","PERIOD"]
[326674416,1715213464658,-500.0,0.00027945,5]
[326674417,1715213464669,-500.0,0.00027945,5]
[326674418,1715213464678,-500.0,0.00027945,5]
[326674419,1715213464687,-500.0,0.00027945,5]
[326674420,1715213464696,-2030.64,0.00027945,5]
[326674421,1715213464706,-500.0,0.00027945,5]
[326674422,1715213464715,-500.0,0.00027945,5]
[326674423,1715213464724,-987.45,0.00027945,5]
[326674424,1715213464733,-718.89,0.00027945,5]
[326674425,1715213464742,-500.0,0.00027945,5]
[326674426,1715213464755,-500.0,0.00027945,5]
[326674427,1715213464764,-500.0,0.00027945,5]
[326674428,1715213464774,-500.0,0.00027945,5]
[326674429,1715213464783,-917.61,0.00027945,5]
[326674430,1715213464793,-500.0,0.00027945,5]
[326674431,1715213464802,-577.17,0.00027945,5]
[326674432,1715213464811,-500.0,0.00027945,5]
[326674433,1715213464820,-500.0,0.00027945,5]
[326674434,1715213464832,-1046.76,0.00027945,5]
[326674435,1715213464842,-964.57,0.00027945,5]
[326674436,1715213464851,-266.04,0.00027945,5]
[326674437,1715213464861,-849.09,0.00027945,5]
[326674438,1715213464870,-500.0,0.00027945,5]
[326674439,1715213464880,-500.0,0.00027945,5]
[326674440,1715213464889,-501.68774174,0.00027945,5]
[326674441,1715213464898,-1410.5,0.00027945,5]
[326674442,1715213464908,-500.0,0.00027945,5]
[326674443,1715213464917,-500.0,0.00027945,5]
[326674444,1715213464926,-500.0,0.00027945,5]
[326674445,1715213464936,-500.0,0.00027945,5]
[326674446,1715213464945,-500.0,0.00027945,5]
[326674447,1715213464955,-2288.86,0.00027945,5]
[326674448,1715213464965,-515.06,0.00027945,5]
[326674449,1715213464975,-500.0,0.00027945,5]
[326674450,1715213464984,-500.0,0.00027945,5]
[326674451,1715213464994,-1124.5,0.00027945,5]
[326674452,1715213465003,-645.6,0.00027945,5]
[326674453,1715213465013,-1294.23,0.00027945,5]
[326674454,1715213465022,-500.0,0.00027945,5]
[326674455,1715213465031,-500.0,0.00027945,5]
[326674456,1715213465040,-500.0,0.00027945,5]
[326674457,1715213465049,-790.32,0.00027945,5]
[326674458,1715213465059,-500.0,0.00027945,5]
[326674459,1715213465068,-500.0,0.00027945,5]
[326674460,1715213465077,-1332.47,0.00027945,5]
[326674461,1715213465087,-500.0,0.00027945,5]
[326674462,1715213465097,-846.42,0.00027945,5]
[326674463,1715213465106,-500.0,0.00027945,5]
[326674464,1715213465115,-500.0,0.00027945,5]
[326674465,1715213465124,-500.0,0.00027945,5]
[326674466,1715213465135,-504.45,0.00027945,2]
[326674467,1715213465144,-2372.1,0.00027945,5]
[326674468,1715213465154,-500.0,0.00027945,5]
[326674469,1715213465163,-2058.74,0.00027945,5]
[326674470,1715213465173,-500.0,0.00027945,5]
[326674471,1715213465182,-500.0,0.00027945,5]
[326674472,1715213465191,-500.0,0.00027945,5]
[326674473,1715213465200,-500.0,0.00027945,5]
[326674474,1715213465209,-500.0,0.00027945,5]
[326674475,1715213465218,-500.0,0.00027945,5]
[326674476,1715213465227,-500.0,0.00027945,5]
[326674477,1715213465236,-1331.86,0.00027945,5]
[326674478,1715213465245,-1503.47,0.00027945,5]
[326674479,1715213465255,-3845.46,0.00027945,5]
[326674480,1715213465264,-198.99,0.00027945,5]
[326674481,1715213465274,-181.0,0.00027945,5]
[326674482,1715213465284,-1671.96,0.00027945,5]
[326674483,1715213465294,-500.0,0.00027945,5]
[326674484,1715213465303,-500.0,0.00027945,5]
[326674485,1715213465313,-848.24,0.00027945,5]
[326674486,1715213465322,-500.0,0.00027945,5]
[326674487,1715213465332,-1375.15,0.00027945,5]
[326674488,1715213465341,-800.89,0.00027945,5]
[326674489,1715213465351,-500.0,0.00027945,5]
[326674490,1715213465361,-2764.75,0.00027945,5]
[326674491,1715213465370,-500.0,0.00027945,5]
[326674492,1715213465381,-966.06,0.00027945,5]
[326674493,1715213465392,-500.0,0.00027945,5]
[326674494,1715213465402,-500.0,0.00027945,5]
[326674495,1715213465411,-500.0,0.00027945,5]
[326674496,1715213465420,-500.0,0.00027945,5]
[326674497,1715213465429,-500.0,0.00027945,5]
[326674498,1715213465439,-500.0,0.00027945,5]
[326674499,1715213465448,-1322.99,0.00027945,5]
[326674500,1715213465457,-2062.81,0.00027945,5]
[326674501,1715213465468,-500.0,0.00027945,5]
[326674502,1715213465478,-225.36387415,0.00027945,5]
[326674503,1715213465487,-500.0,0.00027945,5]
[326674504,1715213465498,-500.0,0.00027945,5]
[326674505,1715213465507,-193.91325023,0.00027945,5]
[326674506,1715213465516,-2471.1,0.00027945,5]
[326674507,1715213465526,-500.0,0.00027945,5]
[326674508,1715213465536,-771.61,0.00027945,5]
[326674509,1715213465546,-2601.61,0.00027945,5]
[326674510,1715213465555,-768.52,0.00027945,5]
[326674511,1715213465566,-15619.64,0.00027945,5]
[326674512,1715213465575,-877.2,0.00027945,5]
[326674513,1715213465584,-500.0,0.00027945,5]
[326674514,1715213465593,-500.0,0.00027945,5]
[326674515,1715213465603,-500.0,0.00027945,5]
[326674516,1715213465612,-500.0,0.00027945,5]
[326674517,1715213465621,-500.0,0.00027945,5]
[326674518,1715213465630,-500.0,0.00027945,5]
[326674519,1715213465639,-807.0,0.00027945,5]
[326674520,1715213465648,-500.0,0.00027945,5]
[326674521,1715213465658,-500.0,0.00027945,5]
[326674522,1715213465667,-500.0,0.00027945,5]
[326674523,1715213465676,-500.0,0.00027945,5]
[326674524,1715213465685,-555.61,0.00027945,5]
[326674525,1715213465695,-500.0,0.00027945,5]
[326674526,1715213465704,-547.18,0.00027945,5]
[326674527,1715213465714,-697.81,0.00027945,5]
[326674528,1715213465723,-500.0,0.00027945,5]
[326674529,1715213465733,-762.94,0.00027945,5]
[326674530,1715213465742,-758.05,0.00027945,5]
[326674531,1715213465757,-500.0,0.00027945,5]
[326674532,1715213465766,-193.0217489,0.00027945,5]
[326674533,1715213465775,-8280.01,0.00027945,5]
[326674534,1715213465785,-500.0,0.00027945,5]
[326674535,1715213465797,-500.0,0.00027945,5]
[326674536,1715213465806,-500.0,0.00027945,5]
[326674537,1715213465816,-500.0,0.00027945,5]
[326674538,1715213465825,-500.0,0.00027945,5]
[326674539,1715213465836,-500.0,0.00027945,5]
[326674540,1715213465847,-500.0,0.00027945,5]
[326674541,1715213465857,-500.0,0.00027945,5]
[326674542,1715213465867,-500.0,0.00027945,5]
[326674543,1715213465877,-500.0,0.00027945,5]
[326674544,1715213465887,-1754.82,0.00027945,5]
[326674545,1715213465895,-500.0,0.00027945,5]
[326674546,1715213465905,-962.66,0.00027945,5]
[326674547,1715213465915,-500.0,0.00027945,5]
[326674548,1715213465924,-500.0,0.00027945,5]
[326674549,1715213465934,-500.0,0.00027945,5]
[326674550,1715213465944,-500.0,0.00027945,5]
[326674551,1715213465954,-561.1,0.00027945,5]
[326674552,1715213465963,-500.0,0.00027945,5]
[326674553,1715213465973,-396.46,0.00027945,5]
[326674554,1715213465983,-2459.38,0.00027945,5]
[326674555,1715213465993,-624.6,0.00027945,5]
[326674556,1715213466004,-500.0,0.00027945,5]
[326674557,1715213466130,-407.6211004,0.00027945,5]
[326674558,1715213466140,-978.37,0.00027945,5]
[326674559,1715213466150,-1630.16,0.00027945,5]
[326674560,1715213466159,-500.0,0.00027945,5]
[326674561,1715213466169,-780.42,0.00027945,5]
[326674562,1715213466179,-500.0,0.00027945,5]
[326674563,1715213466189,-500.0,0.00027945,5]
[326674564,1715213466198,-500.0,0.00027945,5]
[326674565,1715213466208,-500.0,0.00027945,5]
[326674566,1715213466218,-500.0,0.00027945,5]
[326674567,1715213466227,-500.0,0.00027945,5]
[326674568,1715213466237,-500.0,0.00027945,5]
[326674569,1715213466247,-8826.44,0.00027945,5]
[326674570,1715213466257,-500.0,0.00027945,5]
[326674571,1715213466266,-763.04,0.00027945,5]
[326674572,1715213466276,-500.0,0.00027945,5]
[326674573,1715213466286,-747.43,0.00027945,5]
[326674574,1715213466296,-2868.9,0.00027945,5]
[326674575,1715213466306,-500.0,0.00027945,5]
[326674576,1715213466315,-1465.72,0.00027945,5]
[326674577,1715213466325,-500.0,0.00027945,5]
[326674578,1715213466336,-500.0,0.00027945,5]
[326674579,1715213466346,-500.0,0.00027945,5]
[326674580,1715213466355,-524.25,0.00027945,5]
[326674581,1715213466365,-500.0,0.00027945,5]
[326674582,1715213466374,-743.96,0.00027945,5]
[326674583,1715213466383,-1376.58,0.00027945,5]
[326674584,1715213466393,-7562.83,0.00027945,5]
[326674585,1715213466402,-1384.79,0.00027945,5]
[326674586,1715213466412,-734.49,0.00027945,5]
[326674587,1715213466421,-1448.23,0.00027945,5]
[326674588,1715213466431,-500.0,0.00027945,5]
[326674589,1715213466441,-624.95,0.00027945,5]
[326674590,1715213466451,-1651.57,0.00027945,5]
[326674591,1715213466461,-800.56,0.00027945,5]
[326674592,1715213466472,-500.0,0.00027945,5]
[326674593,1715213466482,-928.19,0.00027945,5]
[326674594,1715213466492,-623.48,0.00027945,5]
[326674595,1715213466502,-991.92,0.00027945,5]
[326674596,1715213466513,-899.59,0.00027945,5]
[326674597,1715213466523,-500.0,0.00027945,5]
[326674598,1715213466532,-500.0,0.00027945,5]
[326674599,1715213466542,-906.84,0.00027945,5]
[326674600,1715213466552,-1492.97,0.00027945,5]
[326674601,1715213466562,-500.0,0.00027945,5]
[326674602,1715213466571,-500.0,0.00027945,5]
[326674603,1715213466581,-1215.98,0.00027945,5]
[326674604,1715213466591,-500.0,0.00027945,5]
[326674605,1715213466600,-668.82,0.00027945,5]
[326674606,1715213466610,-10581.62,0.00027945,5]
[326674607,1715213466621,-500.0,0.00027945,5]
[326674608,1715213466630,-2424.25,0.00027945,5]
[326674609,1715213466641,-520.64,0.00027945,5]
[326674610,1715213466650,-535.06,0.00027945,5]
[326674611,1715213466660,-500.0,0.00027945,5]
[326674612,1715213466670,-500.0,0.00027945,2]
[326674613,1715213466680,-936.48,0.00027945,5]
[326674614,1715213466690,-500.0,0.00027945,5]
[326674615,1715213466699,-500.0,0.00027945,5]
[326674616,1715213466709,-804.47,0.00027945,5]
[326674617,1715213466718,-500.0,0.00027945,5]
[326674618,1715213466728,-500.0,0.00027945,5]
[326674619,1715213466738,-500.0,0.00027945,5]
[326674620,1715213466749,-500.24,0.00027945,5]
[326674621,1715213466763,-500.0,0.00027945,5]
[326674622,1715213466773,-500.0,0.00027945,5]
[326674623,1715213466782,-500.0,0.00027945,5]
[326674624,1715213466791,-500.0,0.00027945,5]
[326674625,1715213466800,-500.0,0.00027945,5]
[326674626,1715213466810,-500.0,0.00027945,5]
[326674627,1715213466819,-701.08,0.00027945,5]
[326674628,1715213466830,-337.93585131,0.00027952,2]
[326674629,1715213466841,-11308.74248664,0.0002807,2]
[326674630,1715213466851,-155.73519124,0.0002809,2]
[326674631,1715213466861,-192.3147839,0.00028093,2]
[326674632,1715213466870,-2862.51114419,0.000281,15]
[326674633,1715213466882,-640.64,0.000281,2]
[326674634,1715213466891,-758.55,0.000281,2]
[326674635,1715213466901,-150.0,0.000281,5]
[326674636,1715213466910,-150.0,0.00028118,2]
[326674637,1715213466920,-157.050908,0.00028148,20]
[326674638,1715213466930,-159.78197642,0.00028233,2]
[326674639,1715213466941,-154.55367259,0.00028251,2]
[326674640,1715213466953,-200.0,0.00028265,2]
[326674641,1715213466965,-1000.0,0.00028265,10]
[326674642,1715213466975,-500.0,0.00028265,2]
[326674643,1715213466985,-337.93585131,0.00028326,2]
[326674644,1715213466995,-192.3147839,0.00028351,2]
[326674645,1715213467005,-150.0,0.00028366,120]
[326674646,1715213467014,-200.0,0.00028374,7]
[326674647,1715213467025,-160.0,0.00028431,2]
[326674648,1715213467035,-160.0,0.0002844,2]
[326674649,1715213467044,-157.050908,0.00028448,20]
[326674650,1715213467054,-160.0,0.00028449,2]
[326674651,1715213467063,-200.0,0.00028483,7]
[326674652,1715213467072,-200.0,0.00028483,7]
[326674653,1715213467081,-500.0,0.00028493,5]
[326674654,1715213467091,-500.0,0.00028493,5]
[326674655,1715213467100,-500.0,0.00028493,5]
[326674656,1715213467109,-500.0,0.00028493,5]
[326674657,1715213467118,-500.0,0.00028493,5]
[326674658,1715213467131,-500.0,0.00028493,5]
[326674659,1715213467140,-500.0,0.00028493,5]
[326674660,1715213467150,-500.0,0.00028493,5]
[326674661,1715213467160,-500.0,0.00028493,5]
[326674662,1715213467169,-500.0,0.00028493,5]
[326674663,1715213467178,-500.0,0.00028493,5]
[326674664,1715213467187,-500.0,0.00028493,5]
[326674665,1715213467197,-500.0,0.00028493,5]
[326674666,1715213467206,-500.0,0.00028493,5]
[326674667,1715213467215,-500.0,0.00028493,5]
[326674668,1715213467225,-500.0,0.00028493,5]
[326674669,1715213467234,-500.0,0.00028493,5]
[326674670,1715213467243,-500.0,0.00028493,5]
[326674671,1715213467253,-500.0,0.00028493,5]
[326674672,1715213467263,-500.0,0.00028493,5]
[326674673,1715213467273,-500.0,0.00028493,5]
[326674674,1715213467282,-500.0,0.00028493,5]
[326674675,1715213467292,-500.0,0.00028493,5]
[326674676,1715213467303,-500.0,0.00028493,5]
[326674677,1715213467312,-500.0,0.00028493,5]
[326674678,1715213467321,-500.0,0.00028493,5]
[326674679,1715213467330,-500.0,0.00028493,5]
[326674680,1715213467340,-500.0,0.00028493,5]
[326674681,1715213467350,-500.0,0.00028493,5]
[326674682,1715213467359,-500.0,0.00028493,5]
[326674683,1715213467368,-500.0,0.00028493,5]
[326674684,1715213467379,-500.0,0.00028493,5]
[326674685,1715213467389,-500.0,0.00028493,5]
[326674686,1715213467399,-500.0,0.00028493,5]
[326674687,1715213467408,-582.02,0.00028493,5]
[326674688,1715213467417,-500.0,0.00028493,5]
[326674689,1715213467427,-500.0,0.00028493,5]
[326674690,1715213467436,-500.0,0.00028493,5]
[326674691,1715213467445,-500.0,0.00028493,5]
[326674692,1715213467455,-500.0,0.00028493,5]
[326674693,1715213467464,-500.0,0.00028493,5]
[326674694,1715213467474,-500.0,0.00028493,5]
[326674695,1715213467483,-500.0,0.00028493,5]
[326674696,1715213467492,-500.0,0.00028493,5]
[326674697,1715213467501,-500.0,0.00028493,5]
[326674698,1715213467510,-500.0,0.00028493,5]
[326674699,1715213467520,-500.0,0.00028493,5]
[326674700,1715213467529,-500.0,0.00028493,5]
[326674701,1715213467539,-500.0,0.00028493,5]
[326674702,1715213467548,-500.0,0.00028493,5]
[326674703,1715213467557,-500.0,0.00028493,5]
[326674704,1715213467566,-500.0,0.00028493,5]
[326674705,1715213467576,-500.0,0.00028493,5]
[326674706,1715213467586,-500.0,0.00028493,5]
[326674707,1715213467595,-500.0,0.00028493,5]
[326674708,1715213467605,-500.0,0.00028493,5]
[326674709,1715213467614,-500.0,0.00028493,5]
[326674710,1715213467624,-500.0,0.00028493,5]
[326674711,1715213467633,-500.0,0.00028493,5]
[326674712,1715213467649,-1109.39,0.00028493,5]
[326674713,1715213467659,-500.0,0.00028493,5]
[326674714,1715213467669,-500.0,0.00028493,5]
[326674715,1715213467679,-500.0,0.00028493,5]
[326674716,1715213467689,-546.63,0.00028493,5]
[326674717,1715213467699,-506.41552378,0.00028493,5]
[326674718,1715213467712,-500.0,0.00028493,5]
[326674719,1715213467722,-292.8,0.00028493,5]
[326674720,1715213467732,-500.0,0.00028493,5]
[326674721,1715213467741,-500.0,0.00028493,5]
[326674722,1715213467754,-505.64,0.00028493,5]
[326674723,1715213467764,-500.0,0.00028493,5]
[326674724,1715213467774,-500.0,0.00028493,5]
[326674725,1715213467783,-500.0,0.00028493,5]
[326674726,1715213467794,-500.0,0.00028493,5]
[326674727,1715213467803,-500.23658076,0.00028493,5]
[326674728,1715213467812,-500.0,0.00028493,5]
[326674729,1715213467823,-518.94,0.00028493,5]
[326674730,1715213467835,-500.0,0.00028493,5]
[326674731,1715213467844,-500.0,0.00028493,5]
[326674732,1715213467853,-500.0,0.00028493,5]
[326674733,1715213467862,-1392.61,0.00028493,5]
[326674734,1715213467871,-500.0,0.00028493,5]
[326674735,1715213467881,-500.0,0.00028493,5]
[326674736,1715213467891,-500.0,0.00028493,5]
[326674737,1715213467900,-500.0,0.00028493,5]
[326674738,1715213467910,-500.0,0.00028493,5]
[326674739,1715213468025,-428.97027614,0.00028493,5]
[326674740,1715213468347,-71.02972386,0.00028493,5]
[326674741,1715213468358,-299.23227614,0.00028493,5]
[326674742,1715213468370,-592.97772386,0.00028493,5]
[326674743,1715213468380,-500.0,0.00028493,5]
[326674744,1715213468390,-314.02227614,0.00028493,5]
[326674745,1715213468405,-185.97772386,0.00028493,5]
[326674746,1715213468415,-677.19,0.00028493,5]
[326674747,1715213468425,-500.0,0.00028493,5]
[326674748,1715213468434,-500.0,0.00028493,5]
[326674749,1715213468443,-500.0,0.00028493,5]
[326674750,1715213468452,-500.0,0.00028493,5]
[326674751,1715213468461,-500.0,0.00028493,5]
[326674752,1715213468473,-562.97,0.00028493,5]
[326674753,1715213468483,-500.0,0.00028493,5]
[326674754,1715213468492,-295.2,0.00028493,5]
[326674755,1715213468502,-500.0,0.00028493,5]
[326674756,1715213468512,-500.0,0.00028493,5]
[326674757,1715213468522,-500.0,0.00028493,5]
[326674758,1715213468532,-500.0,0.00028493,5]
[326674759,1715213468541,-500.0,0.00028493,5]
[326674760,1715213468551,-500.0,0.00028493,5]
[326674761,1715213468560,-500.0,0.00028493,5]
[326674762,1715213468569,-500.0,0.00028493,5]
[326674763,1715213468579,-500.0,0.00028493,5]
[326674764,1715213468588,-500.0,0.00028493,5]
[326674765,1715213468598,-182.87693982,0.00028493,5]
[326674766,1715213468611,-446.59306018,0.00028493,5]
[326674767,1715213468620,-500.0,0.00028493,5]
[326674768,1715213468630,-56.65307545,0.00028493,5]
[326674769,1715213468641,-300.0,0.00028493,5]
[326674770,1715213468652,-143.34692455,0.00028493,5]
[326674771,1715213468662,-151.0,0.00028493,7]
[326674772,1715213468671,-545.65307546,0.00028493,5]
[326674773,1715213468682,-148.33692454,0.00028493,5]
[326674774,1715213468691,-351.66307546,0.00028493,5]
[326674775,1715213468702,-148.33692454,0.00028493,5]
[326674776,1715213468711,-542.60132169,0.00028493,5]
[326674777,1715213468723,-377.15867831,0.00028493,5]
[326674778,1715213468732,-500.0,0.00028493,5]
[326674779,1715213468741,-500.0,0.00028493,5]
[326674780,1715213468752,-242.84132469,0.00028493,5]
[326674781,1715213468768,-1198.78867531,0.00028493,5]
[326674782,1715213468778,-500.0,0.00028493,5]
[326674783,1715213468787,-500.0,0.00028493,5]
[326674784,1715213468797,-500.0,0.00028493,5]
[326674785,1715213468806,-500.0,0.00028493,5]
[326674786,1715213468816,-500.0,0.00028493,5]
[326674787,1715213468825,-500.0,0.00028493,5]
[326674788,1715213468837,-500.0,0.00028493,5]
[326674789,1715213468847,-734.48,0.00028493,5]
[326674790,1715213468856,-500.0,0.00028493,5]
[326674791,1715213468866,-500.0,0.00028493,5]
[326674792,1715213468875,-500.0,0.00028493,5]
[326674793,1715213468884,-500.0,0.00028493,5]
[326674794,1715213468893,-1152.1,0.00028493,5]
[326674795,1715213468903,-310.7,0.00028493,5]
[326674796,1715213468912,-500.0,0.00028493,5]
[326674797,1715213468921,-500.0,0.00028493,5]
[326674798,1715213468931,-500.0,0.00028493,5]
[326674799,1715213468943,-500.0,0.00028493,5]
[326674800,1715213468991,-500.0,0.00028493,5]
[326674801,1715213469014,-500.0,0.00028493,5]
[326674802,1715213469024,-500.0,0.00028493,5]
[326674803,1715213469034,-500.0,0.00028493,5]
[326674804,1715213469043,-500.0,0.00028493,5]
[326674805,1715213469053,-500.0,0.00028493,5]
[326674806,1715213469063,-500.0,0.00028493,5]
[326674807,1715213469072,-492.32,0.00028493,5]
[326674808,1715213469082,-500.0,0.00028493,5]
[326674809,1715213469091,-500.0,0.00028493,5]
[326674810,1715213469100,-500.0,0.00028493,5]
[326674811,1715213469111,-500.0,0.00028493,5]
[326674812,1715213469120,-2173.85,0.00028493,5]
[326674813,1715213469131,-500.0,0.00028493,5]
[326674814,1715213469141,-500.0,0.00028493,5]
[326674815,1715213469151,-500.0,0.00028493,5]
[326674816,1715213469160,-500.0,0.00028493,5]
[326674817,1715213469170,-500.0,0.00028493,5]
[326674818,1715213469179,-500.0,0.00028493,5]
[326674819,1715213469188,-500.0,0.00028493,5]
[326674820,1715213469198,-364.32,0.00028493,5]
[326674821,1715213469207,-500.0,0.00028493,5]
[326674822,1715213469217,-500.0,0.00028493,5]
[326674823,1715213469227,-500.0,0.00028493,5]
[326674824,1715213469236,-500.0,0.00028493,5]
[326674825,1715213469245,-500.0,0.00028493,5]
[326674826,1715213469256,-155.046611,0.00028493,7]
[326674827,1715213469265,-500.0,0.00028493,5]
[326674828,1715213469275,-155.90276945,0.00028493,5]
[326674829,1715213469284,-500.0,0.00028493,5]
[326674830,1715213469294,-1104.44,0.00028493,5]
[326674831,1715213469303,-218.96,0.00028493,5]
[326674832,1715213469313,-155.046611,0.00028493,7]
[326674833,1715213469322,-500.0,0.00028493,5]
[326674834,1715213469332,-500.0,0.00028493,5]
[326674835,1715213469342,-331.75,0.00028493,5]
[326674836,1715213469352,-500.0,0.00028493,5]
[326674837,1715213469361,-500.0,0.00028493,5]
[326674838,1715213469370,-500.0,0.00028493,5]
[326674839,1715213469382,-500.0,0.00028493,5]
[326674840,1715213469391,-500.0,0.00028493,5]
[326674841,1715213469400,-426.41,0.00028493,5]
[326674842,1715213469410,-665.04,0.00028493,5]
[326674843,1715213469419,-500.0,0.00028493,5]
[326674844,1715213469429,-500.0,0.00028493,5]
[326674845,1715213469439,-500.0,0.00028493,5]
[326674846,1715213469448,-500.0,0.00028493,5]
[326674847,1715213469578,-525.78580242,0.00028493,5]
[326674848,1715213469588,-500.0,0.00028493,5]
[326674849,1715213469598,-500.0,0.00028493,5]
[326674850,1715213469609,-150.0,0.00028493,5]
[326674851,1715213469623,-968.82,0.00028493,5]
[326674852,1715213469647,-500.0,0.00028493,5]
[326674853,1715213469664,-500.0,0.00028493,5]
[326674854,1715213469674,-500.0,0.00028493,5]
[326674855,1715213469684,-1171.8,0.00028493,5]
[326674856,1715213469696,-500.0,0.00028493,5]
[326674857,1715213469706,-500.0,0.00028493,5]
[326674858,1715213469716,-500.0,0.00028493,5]
[326674859,1715213469726,-500.0,0.00028493,5]
[326674860,1715213469736,-815.97,0.00028493,5]
[326674861,1715213469747,-500.0,0.00028493,5]
[326674862,1715213469766,-500.0,0.00028493,5]
[326674863,1715213469779,-500.0,0.00028493,5]
[326674864,1715213469789,-500.0,0.00028493,5]
[326674865,1715213469799,-500.0,0.00028493,5]
[326674866,1715213469811,-500.0,0.00028493,5]
[326674867,1715213469821,-500.0,0.00028493,5]
[326674868,1715213469831,-500.0,0.00028493,5]
[326674869,1715213469842,-500.0,0.00028493,5]
[326674870,1715213469852,-500.0,0.00028493,5]
[326674871,1715213469862,-500.0,0.00028493,5]
[326674872,1715213469872,-500.0,0.00028493,5]
[326674873,1715213469884,-500.0,0.00028493,5]
[326674874,1715213469894,-500.0,0.00028493,5]
[326674875,1715213469905,-504.38,0.00028493,5]
[326674876,1715213469915,-1654.96,0.00028493,5]
[326674877,1715213469925,-500.0,0.00028493,5]
[326674878,1715213469934,-500.0,0.00028493,5]
[326674879,1715213469944,-500.0,0.00028493,5]
[326674880,1715213469954,-500.0,0.00028493,5]
[326674881,1715213469964,-500.0,0.00028493,5]
[326674882,1715213469974,-500.0,0.00028493,5]
[326674883,1715213469983,-500.0,0.00028493,5]
[326674884,1715213469994,-500.0,0.00028493,5]
[326674885,1715213470004,-1357.21,0.00028493,5]
[326674886,1715213470014,-500.0,0.00028493,5]
[326674887,1715213470024,-500.0,0.00028493,5]
[326674888,1715213470035,-500.0,0.00028493,5]
[326674889,1715213470046,-500.0,0.00028493,5]
[326674890,1715213470055,-681.22,0.00028493,5]
[326674891,1715213470065,-1565.88,0.00028493,5]
[326674892,1715213470074,-500.0,0.00028493,5]
[326674893,1715213470084,-500.0,0.00028493,5]
[326674894,1715213470094,-500.0,0.00028493,5]
[326674895,1715213470104,-500.0,0.00028493,5]
[326674896,1715213470114,-500.0,0.00028493,5]
[326674897,1715213470124,-500.0,0.00028493,5]
[326674898,1715213470136,-500.0,0.00028493,5]
[326674899,1715213470146,-500.0,0.00028493,5]
[326674900,1715213470156,-500.0,0.00028493,5]
[326674901,1715213470166,-500.0,0.00028493,5]
[326674902,1715213470176,-500.0,0.00028493,5]
[326674903,1715213470185,-500.0,0.00028493,5]
[326674904,1715213470195,-500.0,0.00028493,5]
[326674905,1715213470205,-500.0,0.00028493,5]
[326674906,1715213470215,-500.0,0.00028493,5]
[326674907,1715213470224,-500.0,0.00028493,5]
[326674908,1715213470234,-500.0,0.00028493,5]
[326674909,1715213470243,-500.0,0.00028493,5]
[326674910,1715213470253,-500.0,0.00028493,5]
[326674911,1715213470263,-500.0,0.00028493,5]
[326674912,1715213470273,-500.0,0.00028493,5]
[326674913,1715213470283,-500.0,0.00028493,5]
[326674914,1715213470293,-500.0,0.00028493,5]
[326674915,1715213470303,-500.0,0.00028493,2]